fUSD/lending_fUSD_20240328
["ID","MTS","AMOUNT","RATE_DAILY","PERIOD"]
[320886896,1711665068551,-500.0,0.00049863,120]
[320886897,1711665068560,-528.87,0.00049863,120]
[320886898,1711665068570,-1129.46,0.00049863,120]
[320886899,1711665068580,-500.0,0.00049863,120]
[320886900,1711665068589,-500.0,0.00049863,120]
[320886901,1711665068598,-3498.0,0.00049863,120]
[320886902,1711665068608,-500.0,0.00049863,120]
[320886903,1711665068617,-1420.31,0.00049863,120]
[320886904,1711665068626,-500.0,0.00049863,120]
[320886905,1711665068636,-1455.1,0.00049863,120]
[320886906,1711665068646,-541.81,0.00049863,120]
[320886907,1711665068655,-500.0,0.00049863,120]
[320886908,1711665068665,-698.59,0.00049863,120]
[320886909,1711665068674,-1015.71,0.00049863,120]
[320886910,1711665068684,-178.66,0.00049863,120]
[320886911,1711665068694,-500.0,0.00049863,120]
[320886912,1711665068704,-590.04,0.00049863,120]
[320886913,1711665068713,-500.0,0.00049863,120]
[320886914,1711665068727,-1189.37,0.00049863,120]
[320886915,1711665068737,-500.0,0.00049863,120]
[320886916,1711665068747,-5622.54,0.00049863,120]
[320886917,1711665068757,-500.0,0.00049863,120]
[320886918,1711665068766,-500.0,0.00049863,120]
[320886919,1711665068776,-4730.23,0.00049863,120]
[320886920,1711665068786,-918.14,0.00049863,120]
[320886921,1711665068797,-500.0,0.00049863,120]
[320886922,1711665068807,-500.0,0.00049863,120]
[320886923,1711665068817,-500.0,0.00049863,120]
[320886924,1711665068827,-595.53,0.00049863,120]
[320886925,1711665068837,-990.52,0.00049863,120]
[320886926,1711665068847,-926.93,0.00049863,120]
[320886927,1711665068857,-670.59,0.00049863,120]
[320886928,1711665068866,-1283.01,0.00049863,120]
[320886929,1711665068876,-1951.48,0.00049863,120]
[320886930,1711665068885,-437.04,0.00049863,120]
[320886931,1711665068895,-1620.84,0.00049863,120]
[320886932,1711665068905,-500.0,0.00049863,120]
[320886933,1711665068915,-2941.99,0.00049863,120]
[320886934,1711665068925,-1181.83,0.00049863,120]
[320886935,1711665068934,-631.17,0.00049863,120]
[320886936,1711665068944,-1172.19,0.00049863,120]
[320886937,1711665068954,-500.0,0.00049863,120]
[320886938,1711665068964,-3245.99,0.00049863,120]
[320886939,1711665068975,-1454.64,0.00049863,120]
[320886940,1711665068984,-500.0,0.00049863,120]
[320886941,1711665068994,-506.56,0.00049863,120]
[320886942,1711665069004,-500.0,0.00049863,120]
[320886943,1711665069014,-500.0,0.00049863,120]
[320886944,1711665069024,-500.0,0.00049863,120]
[320886945,1711665069034,-4280.82,0.00049863,120]
[320886946,1711665069044,-2013.86,0.00049863,120]
[320886947,1711665069054,-931.2,0.00049863,120]
[320886948,1711665069063,-500.0,0.00049863,120]
[320886949,1711665069073,-500.0,0.00049863,120]
[320886950,1711665069082,-500.0,0.00049863,120]
[320886951,1711665069092,-1429.13,0.00049863,120]
[320886952,1711665069102,-968.39,0.00049863,120]
[320886953,1711665069285,-500.0,0.00049863,120]
[320886954,1711665069295,-500.0,0.00049863,120]
[320886955,1711665069304,-500.0,0.00049863,120]
[320886956,1711665069313,-500.0,0.00049863,120]
[320886957,1711665069322,-500.0,0.00049863,120]
[320886958,1711665069332,-500.0,0.00049863,120]
[320886959,1711665069341,-1032.01,0.00049863,120]
[320886960,1711665069350,-1380.24,0.00049863,120]
[320886961,1711665069359,-653.61,0.00049863,120]
[320886962,1711665069368,-1508.81,0.00049863,120]
[320886963,1711665069378,-500.0,0.00049863,120]
[320886964,1711665069395,-2510.65,0.00049863,120]
[320886965,1711665069408,-500.0,0.00049863,120]
[320886966,1711665069418,-418.75,0.00049863,120]
[320886967,1711665069427,-1065.89,0.00049863,120]
[320886968,1711665069437,-1023.43,0.00049863,120]
[320886969,1711665069447,-500.0,0.00049863,120]
[320886970,1711665069456,-1879.67,0.00049863,120]
[320886971,1711665069467,-1070.3,0.00049863,120]
[320886972,1711665069479,-695.04,0.00049863,120]
[320886973,1711665069489,-926.67,0.00049863,120]
[320886974,1711665069498,-500.0,0.00049863,120]
[320886975,1711665069508,-500.0,0.00049863,120]
[320886976,1711665069517,-500.0,0.00049863,120]
[320886977,1711665069527,-500.0,0.00049863,120]
[320886978,1711665069536,-1108.88,0.00049863,120]
[320886979,1711665069546,-3172.21,0.00049863,120]
[320886980,1711665069555,-1071.01,0.00049863,120]
[320886981,1711665069565,-1046.04,0.00049863,120]
[320886982,1711665069574,-1172.74,0.00049863,120]
[320886983,1711665069584,-994.32,0.00049863,120]
[320886984,1711665069594,-500.0,0.00049863,120]
[320886985,1711665069603,-500.0,0.00049863,120]
[320886986,1711665069613,-500.0,0.00049863,2]
[320886987,1711665069622,-500.0,0.00049863,120]
[320886988,1711665069631,-500.0,0.00049863,120]
[320886989,1711665069641,-500.0,0.00049863,120]
[320886990,1711665069651,-758.1,0.00049863,120]
[320886991,1711665069660,-1318.87,0.00049863,120]
[320886992,1711665069670,-500.0,0.00049863,120]
[320886993,1711665069679,-797.78,0.00049863,120]
[320886994,1711665069689,-500.0,0.00049863,120]
[320886995,1711665069698,-1105.32,0.00049863,120]
[320886996,1711665069710,-500.0,0.00049863,120]
[320886997,1711665069720,-2181.31,0.00049863,120]
[320886998,1711665069732,-500.0,0.00049863,120]
[320886999,1711665069741,-500.0,0.00049863,120]
[320887000,1711665069751,-733.01,0.00049863,120]
[320887001,1711665069760,-500.0,0.00049863,120]
[320887002,1711665069769,-500.0,0.00049863,120]
[320887003,1711665069779,-500.0,0.00049863,120]
[320887004,1711665069789,-500.0,0.00049863,120]
[320887005,1711665069800,-500.0,0.00049863,120]
[320887006,1711665069809,-500.0,0.00049863,120]
[320887007,1711665069819,-500.0,0.00049863,120]
[320887008,1711665069829,-500.0,0.00049863,120]
[320887009,1711665069838,-2689.25,0.00049863,120]
[320887010,1711665069848,-2780.62860487,0.00049868,2]
[320887011,1711665069857,-206.87406453,0.0004987,120]
[320887012,1711665069868,-1519.8199475,0.00049871,4]
[320887013,1711665069877,-26724.91014691,0.00049871,4]
[320887014,1711665069886,-209.0,0.0004988,30]
[320887015,1711665069895,-414915.28277014,0.000499,20]
[320887016,1711665069905,-345.77,0.000499,7]
[320887017,1711665069914,-2300.0,0.000499,18]
[320887018,1711665069923,-159.37394238,0.00049938,30]
[320887019,1711665069933,-5145.3000575,0.00049966,2]
[320887020,1711665069942,-100000.0,0.0005,40]
[320887021,1711665069952,-837.12721508,0.0005,2]
[320887022,1711665069962,-500.0,0.0005,5]
[320887023,1711665069971,-500.0,0.0005,3]
[320887024,1711665069982,-500.0,0.0005,120]
[320887025,1711665069991,-1036.80153559,0.0005,30]
[320887026,1711665070001,-3036.57801443,0.0005,120]
[320887027,1711665070011,-501.14332407,0.0005,2]
[320887028,1711665070021,-200.0,0.0005,120]
[320887029,1711665070030,-33230.0,0.0005,120]
[320887030,1711665070040,-3595.34031063,0.0005,30]
[320887031,1711665070050,-18387.48912902,0.0005,4]
[320887032,1711665070059,-450.0,0.0005,120]
[320887033,1711665070069,-724.0,0.0005,27]
[320887034,1711665070078,-2292.0718962,0.00050068,2]
[320887035,1711665070088,-53965.7369078,0.00050068,2]
[320887036,1711665070097,-749.06013115,0.00050092,46]
[320887037,1711665070107,-166.09,0.000501,7]
[320887038,1711665070116,-169.24,0.000501,7]
[320887039,1711665070126,-154.58347963,0.00050119,60]
[320887040,1711665070135,-500.0,0.00050136,120]
[320887041,1711665070144,-500.0,0.00050136,120]
[320887042,1711665070153,-500.0,0.00050136,120]
[320887043,1711665070162,-500.0,0.00050136,120]
[320887044,1711665070172,-500.0,0.00050136,120]
[320887045,1711665070182,-500.0,0.00050136,120]
[320887046,1711665070191,-500.0,0.00050136,120]
[320887047,1711665070200,-536.46,0.00050136,120]
[320887048,1711665070209,-592.48,0.00050136,120]
[320887049,1711665070219,-500.0,0.00050136,120]
[320887050,1711665070229,-500.0,0.00050136,120]
[320887051,1711665070238,-500.0,0.00050136,120]
[320887052,1711665070247,-500.0,0.00050136,120]
[320887053,1711665070256,-500.0,0.00050136,120]
[320887054,1711665070265,-500.0,0.00050136,120]
[320887055,1711665070274,-449.7,0.00050136,120]
[320887056,1711665070284,-500.0,0.00050136,120]
[320887057,1711665070293,-500.0,0.00050136,120]
[320887058,1711665070302,-500.0,0.00050136,120]
[320887059,1711665070312,-500.0,0.00050136,120]
[320887060,1711665070321,-500.0,0.00050136,120]
[320887061,1711665070330,-418.48,0.00050136,120]
[320887062,1711665070339,-500.0,0.00050136,120]
[320887063,1711665070349,-488.54782572,0.00050136,120]
[320887064,1711665070360,-500.0,0.00050136,120]
[320887065,1711665070370,-861.82,0.00050136,120]
[320887066,1711665070379,-500.0,0.00050136,120]
[320887067,1711665070389,-500.0,0.00050136,120]
[320887068,1711665070399,-500.0,0.00050136,120]
[320887069,1711665070409,-218.43,0.00050136,120]
[320887070,1711665070420,-300.34,0.00050136,120]
[320887071,1711665070429,-500.0,0.00050136,120]
[320887072,1711665070439,-414.58,0.00050136,120]
[320887073,1711665070449,-500.0,0.00050136,120]
[320887074,1711665070458,-500.0,0.00050136,120]
[320887075,1711665070469,-500.0,0.00050136,120]
[320887076,1711665070480,-500.0,0.00050136,120]
[320887077,1711665070490,-493.91,0.00050136,120]
[320887078,1711665070499,-500.0,0.00050136,120]
[320887079,1711665070509,-500.0,0.00050136,120]
[320887080,1711665070518,-427.18,0.00050136,120]
[320887081,1711665070529,-212.61,0.00050136,120]
[320887082,1711665070538,-500.0,0.00050136,120]
[320887083,1711665070549,-500.0,0.00050136,120]
[320887084,1711665070559,-500.0,0.00050136,120]
[320887085,1711665070570,-500.0,0.00050136,120]
[320887086,1711665070579,-500.0,0.00050136,120]
[320887087,1711665070589,-377.28,0.00050136,120]
[320887088,1711665070598,-500.0,0.00050136,120]
[320887089,1711665070607,-253.81,0.00050136,120]
[320887090,1711665070617,-500.0,0.00050136,120]
[320887091,1711665070626,-500.0,0.00050136,120]
[320887092,1711665070635,-545.82,0.00050136,120]
[320887093,1711665070645,-500.0,0.00050136,120]
[320887094,1711665070654,-500.0,0.00050136,120]
[320887095,1711665070663,-405.99,0.00050136,120]
[320887096,1711665070673,-464.51,0.00050136,120]
[320887097,1711665070682,-500.0,0.00050136,120]
[320887098,1711665070692,-500.0,0.00050136,120]
[320887099,1711665070703,-626.4,0.00050136,120]
[320887100,1711665070712,-500.0,0.00050136,120]
[320887101,1711665070724,-500.0,0.00050136,120]
[320887102,1711665070734,-500.0,0.00050136,120]
[320887103,1711665070744,-509.2,0.00050136,120]
[320887104,1711665070753,-500.0,0.00050136,120]
[320887105,1711665070763,-500.0,0.00050136,120]
[320887106,1711665070773,-483.98,0.00050136,120]
[320887107,1711665070782,-500.0,0.00050136,120]
[320887108,1711665070792,-500.0,0.00050136,120]
[320887109,1711665070804,-500.0,0.00050136,120]
[320887110,1711665070814,-500.0,0.00050136,120]
[320887111,1711665070824,-500.0,0.00050136,120]
[320887112,1711665070834,-500.0,0.00050136,120]
[320887113,1711665070844,-314.08,0.00050136,120]
[320887114,1711665070854,-300.46,0.00050136,120]
[320887115,1711665070863,-330.04,0.00050136,120]
[320887116,1711665070873,-500.0,0.00050136,120]
[320887117,1711665070883,-455.13,0.00050136,120]
[320887118,1711665070894,-500.0,0.00050136,2]
[320887119,1711665070903,-266.95,0.00050136,120]
[320887120,1711665070912,-552.7,0.00050136,120]
[320887121,1711665070923,-493.39,0.00050136,120]
[320887122,1711665070933,-225.82,0.00050136,120]
[320887123,1711665070942,-201.4,0.00050136,120]
[320887124,1711665070951,-352.63,0.00050136,120]
[320887125,1711665070960,-500.0,0.00050136,120]
[320887126,1711665070970,-397.21503715,0.00050136,120]
[320887127,1711665070983,-500.0,0.00050136,120]
[320887128,1711665070992,-500.0,0.00050136,120]
[320887129,1711665071001,-444.58,0.00050136,120]
[320887130,1711665071011,-500.0,0.00050136,2]
[320887131,1711665071020,-500.0,0.00050136,120]
[320887132,1711665071029,-288.25,0.00050136,120]
[320887133,1711665071039,-500.0,0.00050136,120]
[320887134,1711665071048,-500.0,0.00050136,120]
[320887135,1711665071058,-596.64,0.00050136,120]
[320887136,1711665071067,-240.37591849,0.00050136,120]
[320887137,1711665071077,-444.36,0.00050136,120]
[320887138,1711665071086,-416.05475652,0.00050136,120]
[320887139,1711665071095,-500.0,0.00050136,120]
[320887140,1711665071107,-192.78,0.00050136,120]
[320887141,1711665071116,-500.0,0.00050136,120]
[320887142,1711665071125,-500.0,0.00050136,120]
[320887143,1711665071134,-500.0,0.00050136,120]
[320887144,1711665071144,-500.0,0.00050136,120]
[320887145,1711665071153,-500.0,0.00050136,120]
[320887146,1711665071162,-161.7,0.00050136,120]
[320887147,1711665071171,-500.0,0.00050136,120]
[320887148,1711665071181,-500.0,0.00050136,120]
[320887149,1711665071191,-500.0,0.00050136,120]
[320887150,1711665071200,-812.54,0.00050136,120]
[320887151,1711665071209,-497.46,0.00050136,120]
[320887152,1711665071219,-500.0,0.00050136,120]
[320887153,1711665071232,-500.0,0.00050136,120]
[320887154,1711665071241,-500.0,0.00050136,120]
[320887155,1711665071251,-500.0,0.00050136,120]
[320887156,1711665071260,-500.0,0.00050136,120]
[320887157,1711665071270,-500.0,0.00050136,120]
[320887158,1711665071280,-500.0,0.00050136,120]
[320887159,1711665071289,-260.97,0.00050136,120]
[320887160,1711665071298,-500.0,0.00050136,120]
[320887161,1711665071307,-500.0,0.00050136,120]
[320887162,1711665071317,-500.0,0.00050136,120]
[320887163,1711665071326,-500.0,0.00050136,120]
[320887164,1711665071335,-500.0,0.00050136,120]
[320887165,1711665071344,-500.0,0.00050136,120]
[320887166,1711665071353,-500.0,0.00050136,120]
[320887167,1711665071362,-500.0,0.00050136,120]
[320887168,1711665071372,-587.92,0.00050136,120]
[320887169,1711665071381,-296.57681172,0.00050136,120]
[320887170,1711665071390,-500.0,0.00050136,120]
[320887171,1711665071399,-500.0,0.00050136,120]
[320887172,1711665071408,-519.13,0.00050136,120]
[320887173,1711665071417,-167.75,0.00050136,120]
[320887174,1711665071426,-500.0,0.00050136,120]
[320887175,1711665071435,-173.56441031,0.00050136,120]
[320887176,1711665071445,-500.0,0.00050136,120]
[320887177,1711665071454,-500.0,0.00050136,120]
[320887178,1711665071463,-500.0,0.00050136,120]
[320887179,1711665071472,-500.0,0.00050136,120]
[320887180,1711665071484,-274.08,0.00050136,120]
[320887181,1711665071493,-500.0,0.00050136,120]
[320887182,1711665071503,-500.0,0.00050136,120]
[320887183,1711665071512,-500.0,0.00050136,120]
[320887184,1711665071522,-500.0,0.00050136,120]
[320887185,1711665071531,-500.0,0.00050136,120]
[320887186,1711665071542,-532.01,0.00050136,120]
[320887187,1711665071551,-500.0,0.00050136,120]
[320887188,1711665071560,-500.0,0.00050136,120]
[320887189,1711665071570,-488.03,0.00050136,120]
[320887190,1711665071579,-500.0,0.00050136,120]
[320887191,1711665071589,-500.0,0.00050136,120]
[320887192,1711665071599,-562.67,0.00050136,120]
[320887193,1711665071609,-500.0,0.00050136,120]
[320887194,1711665071620,-500.0,0.00050136,120]
[320887195,1711665071630,-500.0,0.00050136,120]
[320887196,1711665071639,-500.0,0.00050136,120]
[320887197,1711665071648,-500.0,0.00050136,120]
[320887198,1711665071657,-500.0,0.00050136,120]
[320887199,1711665071665,-500.0,0.00050136,120]
[320887200,1711665071674,-500.0,0.00050136,120]
[320887201,1711665071684,-379.36,0.00050136,120]
[320887202,1711665071693,-500.0,0.00050136,120]
[320887203,1711665071702,-500.0,0.00050136,120]
[320887204,1711665071715,-500.0,0.00050136,120]
[320887205,1711665071725,-500.0,0.00050136,120]
[320887206,1711665071736,-583.98,0.00050136,120]
[320887207,1711665071745,-500.0,0.00050136,120]
[320887208,1711665071755,-379.22,0.00050136,120]
[320887209,1711665071764,-500.0,0.00050136,120]
[320887210,1711665071773,-500.0,0.00050136,120]
[320887211,1711665071783,-627.52,0.00050136,120]
[320887212,1711665071793,-500.0,0.00050136,120]
[320887213,1711665071802,-475.9,0.00050136,120]
[320887214,1711665071811,-690.47,0.00050136,120]
[320887215,1711665071820,-500.0,0.00050136,120]
[320887216,1711665071829,-586.72,0.00050136,120]
[320887217,1711665071838,-616.1,0.00050136,120]
[320887218,1711665071847,-225.17,0.00050136,120]
[320887219,1711665071856,-645.22,0.00050136,120]
[320887220,1711665071866,-500.0,0.00050136,120]
[320887221,1711665071875,-500.0,0.00050136,120]
[320887222,1711665071884,-500.0,0.00050136,120]
[320887223,1711665071893,-500.0,0.00050136,120]
[320887224,1711665071902,-500.0,0.00050136,120]
[320887225,1711665071911,-500.0,0.00050136,120]
[320887226,1711665071920,-500.0,0.00050136,120]
[320887227,1711665071930,-500.0,0.00050136,120]
[320887228,1711665071939,-500.0,0.00050136,7]
[320887229,1711665071949,-500.0,0.00050136,120]
[320887230,1711665071958,-254.44,0.00050136,120]
[320887231,1711665071967,-551.01,0.00050136,120]
[320887232,1711665071977,-500.0,0.00050136,120]
[320887233,1711665071986,-328.94,0.00050136,120]
[320887234,1711665071995,-498.65,0.00050136,120]
[320887235,1711665072004,-500.0,0.00050136,120]
[320887236,1711665072013,-338.96,0.00050136,120]
[320887237,1711665072022,-381.14,0.00050136,120]
[320887238,1711665072031,-500.0,0.00050136,120]
[320887239,1711665072041,-500.0,0.00050136,30]
[320887240,1711665072050,-500.0,0.00050136,120]
[320887241,1711665072059,-500.0,0.00050136,120]
[320887242,1711665072068,-500.0,0.00050136,120]
[320887243,1711665072078,-551.8,0.00050136,120]
[320887244,1711665072089,-500.0,0.00050136,120]
[320887245,1711665072100,-284.45,0.00050136,120]
[320887246,1711665072109,-560.82,0.00050136,120]
[320887247,1711665072119,-500.0,0.00050136,120]
[320887248,1711665072129,-514.39,0.00050136,120]
[320887249,1711665072140,-500.0,0.00050136,120]
[320887250,1711665072151,-500.0,0.00050136,120]
[320887251,1711665072161,-854.61,0.00050136,120]
[320887252,1711665072170,-500.0,0.00050136,120]
[320887253,1711665072179,-710.65,0.00050136,120]
[320887254,1711665072189,-500.0,0.00050136,120]
[320887255,1711665072198,-608.34,0.00050136,120]
[320887256,1711665072207,-500.0,0.00050136,120]
[320887257,1711665072217,-500.0,0.00050136,120]
[320887258,1711665072226,-500.0,0.00050136,120]
[320887259,1711665072236,-793.97,0.00050136,120]
[320887260,1711665072245,-973.45228917,0.00050136,30]
[320887261,1711665072254,-389.39585398,0.00050136,120]
[320887262,1711665072264,-208.51,0.00050136,120]
[320887263,1711665072274,-500.0,0.00050136,120]
[320887264,1711665072283,-500.0,0.00050136,120]
[320887265,1711665072292,-561.46,0.00050136,120]
[320887266,1711665072302,-669.16,0.00050136,120]
[320887267,1711665072311,-500.0,0.00050136,120]
[320887268,1711665072322,-500.0,0.00050136,120]
[320887269,1711665072331,-502.88,0.00050136,120]
[320887270,1711665072342,-500.0,0.00050136,120]
[320887271,1711665072353,-500.0,0.00050136,120]
[320887272,1711665072362,-500.0,0.00050136,120]
[320887273,1711665072373,-500.0,0.00050136,120]
[320887274,1711665072384,-604.1,0.00050136,120]
[320887275,1711665072395,-500.0,0.00050136,120]
[320887276,1711665072405,-500.0,0.00050136,120]
[320887277,1711665072415,-500.0,0.00050136,120]
[320887278,1711665072426,-500.0,0.00050136,120]
[320887279,1711665072435,-500.0,0.00050136,120]
[320887280,1711665072445,-616.58,0.00050136,120]
[320887281,1711665072454,-1002.52,0.00050136,120]
[320887282,1711665072464,-415.16,0.00050136,120]
[320887283,1711665072475,-381.63,0.00050136,120]
[320887284,1711665072486,-500.0,0.00050136,120]
[320887285,1711665072495,-309.55,0.00050136,120]
[320887286,1711665072504,-500.0,0.00050136,120]
[320887287,1711665072513,-500.0,0.00050136,120]
[320887288,1711665072523,-500.0,0.00050136,120]
[320887289,1711665072533,-432.91,0.00050136,120]
[320887290,1711665072543,-618.33,0.00050136,120]
[320887291,1711665072553,-500.0,0.00050136,120]
[320887292,1711665072562,-500.0,0.00050136,120]
[320887293,1711665072571,-568.64,0.00050136,120]
[320887294,1711665072581,-500.0,0.00050136,120]
[320887295,1711665072590,-500.0,0.00050136,120]
[320887296,1711665072599,-267.82,0.00050136,120]
[320887297,1711665072778,-390.1,0.00050136,120]
[320887298,1711665072787,-500.0,0.00050136,120]
[320887299,1711665072797,-500.0,0.00050136,120]
[320887300,1711665072807,-500.0,0.00050136,120]
[320887301,1711665072816,-500.0,0.00050136,120]
[320887302,1711665072826,-1616.48,0.00050136,120]
[320887303,1711665072835,-500.0,0.00050136,120]
[320887304,1711665072845,-500.0,0.00050136,120]
[320887305,1711665072854,-179.47862662,0.00050136,120]
[320887306,1711665072864,-500.0,0.00050136,120]
[320887307,1711665072874,-500.0,0.00050136,120]
[320887308,1711665072883,-249.73,0.00050136,120]
[320887309,1711665072893,-556.3,0.00050136,120]
[320887310,1711665072902,-622.38,0.00050136,120]
[320887311,1711665072911,-363.87,0.00050136,120]
[320887312,1711665072921,-735.68,0.00050136,120]
[320887313,1711665072930,-2093.07,0.00050136,120]
[320887314,1711665072939,-1133.95,0.00050136,120]
[320887315,1711665072949,-500.0,0.00050136,120]
[320887316,1711665072959,-680.69,0.00050136,120]
[320887317,1711665072968,-500.0,0.00050136,120]
[320887318,1711665072977,-779.67,0.00050136,120]
[320887319,1711665072989,-500.0,0.00050136,120]
[320887320,1711665072998,-899.43,0.00050136,120]
[320887321,1711665073008,-516.29,0.00050136,120]
[320887322,1711665073018,-500.0,0.00050136,120]
[320887323,1711665073027,-1159.54,0.00050136,120]
[320887324,1711665073036,-543.24,0.00050136,120]
[320887325,1711665073046,-4961.26,0.00050136,120]
[320887326,1711665073055,-1143.61,0.00050136,120]
[320887327,1711665073064,-500.0,0.00050136,120]
[320887328,1711665073073,-1092.72,0.00050136,120]
[320887329,1711665073083,-1575.93,0.00050136,120]
[320887330,1711665073092,-1071.92,0.00050136,120]
[320887331,1711665073102,-436.48,0.00050136,120]
[320887332,1711665073111,-1127.44,0.00050136,120]
[320887333,1711665073120,-654.53,0.00050136,120]
[320887334,1711665073130,-1151.79,0.00050136,120]
[320887335,1711665073139,-747.27,0.00050136,120]
[320887336,1711665073149,-500.0,0.00050136,120]
[320887337,1711665073158,-1565.72,0.00050136,120]
[320887338,1711665073167,-566.93,0.00050136,120]
[320887339,1711665073176,-1181.34,0.00050136,120]
[320887340,1711665073186,-1858.25,0.00050136,120]
[320887341,1711665073197,-500.0,0.00050136,120]
[320887342,1711665073207,-172.44,0.00050136,120]
[320887343,1711665073217,-500.0,0.00050136,120]
[320887344,1711665073226,-720.04,0.00050136,120]
[320887345,1711665073241,-500.0,0.00050136,120]
[320887346,1711665073250,-1168.39,0.00050136,120]
[320887347,1711665073259,-10017.78,0.00050136,120]
[320887348,1711665073268,-500.0,0.00050136,120]
[320887349,1711665073279,-500.0,0.00050136,120]
[320887350,1711665073288,-827.11,0.00050136,120]
[320887351,1711665073298,-1697.85,0.00050136,120]
[320887352,1711665073307,-500.0,0.00050136,120]
[320887353,1711665073316,-1828.09,0.00050136,120]
[320887354,1711665073325,-500.0,0.00050136,120]
[320887355,1711665073334,-1569.72,0.00050136,120]
[320887356,1711665073343,-163.8,0.00050136,120]
[320887357,1711665073354,-660.55,0.00050136,120]
[320887358,1711665073364,-500.0,0.00050136,120]
[320887359,1711665073373,-707.06,0.00050136,120]
[320887360,1711665073383,-1030.61,0.00050136,120]
[320887361,1711665073392,-2956.53,0.00050136,120]
[320887362,1711665073402,-500.0,0.00050136,120]
[320887363,1711665073412,-531.68,0.00050136,120]
[320887364,1711665073422,-500.0,0.00050136,7]
[320887365,1711665073432,-1437.28,0.00050136,120]
[320887366,1711665073442,-500.0,0.00050136,120]
[320887367,1711665073451,-1519.15,0.00050136,120]
[320887368,1711665073462,-500.0,0.00050136,120]
[320887369,1711665073471,-915.61,0.00050136,120]
[320887370,1711665073482,-500.0,0.00050136,120]
[320887371,1711665073491,-500.0,0.00050136,120]
[320887372,1711665073500,-500.0,0.00050136,120]
[320887373,1711665073509,-505.45,0.00050136,120]
[320887374,1711665073518,-1410.16,0.00050136,120]
[320887375,1711665073528,-500.0,0.00050136,120]
[320887376,1711665073537,-500.0,0.00050136,120]
[320887377,1711665073546,-854.8,0.00050136,120]
[320887378,1711665073555,-500.0,0.00050136,120]
[320887379,1711665073565,-11247.68,0.00050136,120]
[320887380,1711665073575,-7400.25,0.00050136,120]
[320887381,1711665073585,-646.27,0.00050136,120]
[320887382,1711665073595,-500.0,0.00050136,120]
[320887383,1711665073604,-1025.19,0.00050136,120]
[320887384,1711665073613,-1216.32,0.00050136,120]
[320887385,1711665073622,-1040.33,0.00050136,120]
[320887386,1711665073632,-750.82,0.00050136,120]
[320887387,1711665073642,-500.0,0.00050136,120]
[320887388,1711665073651,-500.0,0.00050136,120]
[320887389,1711665073661,-500.0,0.00050136,120]
[320887390,1711665073671,-461.28,0.00050136,120]
[320887391,1711665073680,-500.0,0.00050136,120]
[320887392,1711665073690,-609.02,0.00050136,120]
[320887393,1711665073699,-1147.38,0.00050136,120]
[320887394,1711665073712,-1236.42,0.00050136,120]
[320887395,1711665073726,-500.0,0.00050136,120]